[Event "Turkish Super League 2019"]
[Site "Konya"]
[Date "2019.07.24"]
[Round "8"]
[White "Akdogan, Alperen"]
[Black "Eren, Ataberk"]
[Result "1/2-1/2"]
[ECO "D23"]
[WhiteElo "2193"]
[BlackElo "2295"]
[Annotator "NA"]
[PlyCount "61"]
[EventDate "2019.07.17"]
[EventType "team-tourn"]
[EventCountry "TUR"]
[SourceTitle "playchess.com"]
[Source "ChessBase"]
[SourceQuality "1"]
[TimeControl "40/5400+30:1800+30"]

1. d4 d5 2. Nf3 Nf6 3. c4 c6 4. Qc2 dxc4 5. Qxc4 Bg4 6. Nbd2 e6 7. g3 Be7 8. Bg2 O-O 9. O-O Nbd7 10. Ne5 Bh5 11. Nxd7 Nxd7 12. Nb3 a5 13. a4 e5 14. Rd1 Re8 15. dxe5 Nxe5 16. Qc2 Qb6 17. Be3 Bg6 18. Qxg6 Qxe3 19. Qc2 Qb6 20. e3 Rad8 21. Rac1 g6 22. Nd4 Bf6 23. h3 Qb4 24. b3 Kg7 25. Qc5 Qxc5 26. Rxc5 b6 27. Rcc1 c5 28. Nc6 Nxc6 29. Bxc6 Re6 30. Rxd8 Bxd8 31. Bf3 1/2-1/2

[Event "Turkish Super League 2019"]
[Site "Konya"]
[Date "2019.07.24"]
[Round "8"]
[White "Aydin, Hakan Arda"]
[Black "Agdelen, Huseyin Can"]
[Result "0-1"]
[ECO "B97"]
[WhiteElo "1956"]
[BlackElo "2275"]
[Annotator "NA"]
[PlyCount "20"]
[EventDate "2019.07.17"]
[EventType "team-tourn"]
[EventCountry "TUR"]
[SourceTitle "playchess.com"]
[Source "ChessBase"]
[SourceQuality "1"]
[TimeControl "40/5400+30:1800+30"]

1. e4 c5 2. Nf3 d6 3. d4 cxd4 4. Nxd4 Nf6 5. Nc3 a6 6. Bg5 Nbd7 7. f4 Qb6 8. Nb3 e6 9. Qf3 Qc7 10. O-O-O b5 0-1

[Event "Turkish Super League 2019"]
[Site "Konya"]
[Date "2019.07.25"]
[Round "9"]
[White "Rasulov, Vugar"]
[Black "Romanov, Evgeny"]
[Result "1/2-1/2"]
[ECO "C77"]
[WhiteElo "2534"]
[BlackElo "2582"]
[Annotator "ChessBase"]
[PlyCount "75"]
[EventDate "2019.07.17"]
[EventType "team-tourn"]
[EventCountry "TUR"]
[SourceTitle "playchess.com"]
[Source "ChessBase"]
[SourceQuality "1"]
[TimeControl "40/5400+30:1800+30"]

1. e4 e5 2. Nf3 Nc6 3. Bb5 a6 4. Ba4 Nf6 5. O-O Be7 6. d3 d6 7. c3 O-O 8. Nbd2 b5 9. Bc2 Nb8 10. Re1 Re8 11. Nf1 Bf8 12. Ng3 g6 13. d4 Nbd7 14. a4 Bb7 15. Bd3 c6 16. b3 Bg7 17. Bb2 Qc7 18. Qc2 d5 19. dxe5 Nxe4 {[%emt 0:27:30]} 20. axb5 {[%emt 0:24:00]} cxb5 {[%emt 0:00:30]} 21. Nxe4 {[%emt 0:00:30]} dxe4 {[%emt 0:00:30]} 22. Bxe4 {[%emt 0:00:30]} Nxe5 {[%emt 0:01:30]} 23. Bxb7 {[%emt 0:03:30]} Qxb7 {[%emt 0:00:30]} 24. Nxe5 {[%emt 0:00:30]} Rxe5 {[%emt 0:04:30]} 25. Rxe5 {[%emt 0:01:30]} Bxe5 {[%emt 0:00:30]} 26. Re1 {[%emt 0:00:30]} Bg7 {[%emt 0:00:00]} 27. g3 {[%emt 0:01:30]} a5 {[%emt 0:03:00]} 28. Ba1 {[%emt 0:08:30]} a4 {[%emt 0:19:30]} 29. bxa4 {[%emt 0:04:30]} bxa4 {[%emt 0:00:30]} 30. c4 {[%emt 0:00:30]} a3 {[%emt 0:05:30]} 31. c5 {[%emt 0:01:30]} Qc6 {[%emt 0:08:30]} 32. Bxg7 {[%emt 0:05:30]} Kxg7 {[%emt 0:00:30]} 33. Ra1 {[%emt 0:00:30]} Kg8 {[%emt 0:05:30]} 34. Qc3 {[%emt 0:00:30]} a2 {[%emt 0:00:30]} 35. Qc2 {[%emt 0:00:30]} Ra5 {[%emt 0:01:30]} 36. Rxa2 {[%emt 0:00:30]} Rxc5 {[%emt 0:00:30]} 37. Ra8+ {[%emt 0:00:30]} Qxa8 {[%emt 0:00:30]} 38. Qxc5 {[%emt 0:00:30]} 1/2-1/2

[Event "Turkish Super League 2019"]
[Site "Konya"]
[Date "2019.07.25"]
[Round "9"]
[White "Ali Marandi, Cemil Can"]
[Black "Gunduz, Umut Erdem"]
[Result "1-0"]
[ECO "A45"]
[WhiteElo "2527"]
[BlackElo "2261"]
[Annotator "ChessBase"]
[PlyCount "71"]
[EventDate "2019.07.17"]
[EventType "team-tourn"]
[EventCountry "TUR"]
[SourceTitle "playchess.com"]
[Source "ChessBase"]
[SourceQuality "1"]
[TimeControl "40/5400+30:1800+30"]

1. d4 Nf6 2. Bg5 Ne4 3. h4 d5 4. Nd2 Bf5 5. Nxe4 Bxe4 6. f3 Bf5 7. g4 h6 8. Bf4 Bg6 9. h5 Bh7 10. e3 e6 11. Bd3 Bxd3 12. Qxd3 Nc6 13. O-O-O Bd6 14. Ne2 Bxf4 15. Nxf4 Qd6 16. Kb1 O-O-O 17. Rhg1 {[%emt 0:26:30]} Rhe8 {[%emt 0:35:30]} 18. g5 {[%emt 0:14:30]} e5 {[%emt 0:19:30]} 19. Ne2 {[%emt 0:05:30]} exd4 {[%emt 0:07:30]} 20. exd4 {[%emt 0:01:30]} Qh2 {[%emt 0:08:30]} 21. gxh6 {[%emt 0:04:30]} gxh6 {[%emt 0:02:30]} 22. Ng3 {[%emt 0:03:30]} Rg8 {[%emt 0:01:30]} 23. f4 {[%emt 0:06:30]} Qf2 {[%emt 0:03:30]} 24. c3 {[%emt 0:03:30]} Qxf4 {[%emt 0:11:59]} 25. Qf5+ {[%emt 0:01:30]} Qxf5+ {[%emt 0:00:30]} 26. Nxf5 {[%emt 0:00:00]} Rg5 {[%emt 0:01:08]} 27. Rxg5 {[%emt 0:01:00]} hxg5 {[%emt 0:00:30]} 28. Re1 {[%emt 0:00:00]} Kd7 {[%emt 0:00:56]} 29. c4 {[%emt 0:06:00]} dxc4 {[%emt 0:04:26]} 30. d5 {[%emt 0:00:30]} Nb4 {[%emt 0:00:44]} 31. Re7+ {[%emt 0:00:30]} Kc8 {[%emt 0:00:30]} 32. d6 {[%emt 0:00:30]} cxd6 {[%emt 0:06:04]} 33. h6 {[%emt 0:00:00]} Nc6 {[%emt 0:00:39]} 34. h7 {[%emt 0:00:00]} Rh8 {[%emt 0:00:58]} 35. Nxd6+ {[%emt 0:00:30]} Kd8 {[%emt 0:00:14]} 36. Re8+ {[%emt 0:00:30]} 1-0

[Event "Turkish Super League 2019"]
[Site "Konya"]
[Date "2019.07.25"]
[Round "9"]
[White "Sanal, Vahap"]
[Black "Nihal Sarin"]
[Result "1/2-1/2"]
[ECO "B69"]
[WhiteElo "2520"]
[BlackElo "2610"]
[Annotator "ChessBase"]
[PlyCount "110"]
[EventDate "2019.07.17"]
[EventType "team-tourn"]
[EventCountry "TUR"]
[SourceTitle "playchess.com"]
[Source "ChessBase"]
[SourceQuality "1"]
[TimeControl "40/5400+30:1800+30"]

1. e4 c5 2. Nc3 d6 3. Nge2 Nf6 4. d4 cxd4 5. Nxd4 Nc6 6. Bg5 e6 7. Qd2 a6 8. O-O-O Be7 9. f4 Bd7 10. Nf3 b5 11. Bxf6 gxf6 12. Kb1 Qb6 13. h4 {[%emt 0:17:30]} h5 {[%emt 0:51:30]} 14. Ne2 {[%emt 0:05:30]} O-O-O {[%emt 0:01:30]} 15. Nfd4 {[%emt 0:04:30]} Kb8 {[%emt 0:06:30]} 16. Qe1 {[%emt 0:07:30]} Rhg8 {[%emt 0:10:30]} 17. g3 {[%emt 0:09:30]} Rc8 {[%emt 0:11:13]} 18. Bh3 {[%emt 0:22:30]} Na5 {[%emt 0:01:12]} 19. b3 {[%emt 0:00:30]} Rc7 {[%emt 0:03:18]} 20. Rd2 {[%emt 0:12:30]} Rgc8 {[%emt 0:02:31]} 21. Qd1 {[%emt 0:02:50]} Ka7 {[%emt 0:03:48]} 22. c3 {[%emt 0:03:18]} Nb7 {[%emt 0:02:10]} 23. Re1 {[%emt 0:03:18]} a5 {[%emt 0:00:34]} 24. f5 {[%emt 0:03:05]} e5 {[%emt 0:00:30]} 25. Nc2 {[%emt 0:00:00]} Bf8 {[%emt 0:00:24]} 26. Bg2 {[%emt 0:00:17]} Bh6 {[%emt 0:03:01]} 27. Rd3 {[%emt 0:00:19]} Rc6 {[%emt 0:01:52]} 28. Bf3 {[%emt 0:01:17]} b4 {[%emt 0:00:56]} 29. c4 {[%emt 0:00:29]} Nc5 {[%emt 0:00:27]} 30. Rd5 {[%emt 0:00:42]} a4 {[%emt 0:00:12]} 31. Kb2 {[%emt 0:01:30]} Be8 {[%emt 0:01:08]} 32. Nc1 {[%emt 0:01:03]} Qa5 {[%emt 0:01:41]} 33. Nd3 {[%emt 0:03:38]} Rb8 {[%emt 0:00:16]} 34. Qe2 {[%emt 0:01:41]} Ra6 {[%emt 0:01:12]} 35. Ra1 {[%emt 0:00:21]} a3+ {[%emt 0:00:37]} 36. Kb1 {[%emt 0:00:06]} Bf8 {[%emt 0:00:24]} 37. Nxc5 {[%emt 0:00:55]} dxc5 {[%emt 0:00:01]} 38. Ne3 {[%emt 0:00:11]} Bc6 {[%emt 0:00:24]} 39. Rd3 {[%emt 0:01:18]} Rd8 {[%emt 0:00:13]} 40. Nd5 {[%emt 0:00:00]} Bxd5 {[%emt 0:00:00]} 41. Rxd5 {[%emt 0:05:12]} Rxd5 {[%emt 0:06:26]} 42. exd5 {[%emt 0:00:30]} e4 {[%emt 0:01:30]} 43. Qxe4 {[%emt 0:03:30]} Qc7 {[%emt 0:00:30]} 44. Kc2 {[%emt 0:03:30]} Qxg3 {[%emt 0:01:30]} 45. Re1 {[%emt 0:10:18]} Bd6 {[%emt 0:00:30]} 46. Re2 {[%emt 0:00:17]} Rb6 {[%emt 0:08:57]} 47. Rg2 {[%emt 0:01:01]} Qh3 {[%emt 0:01:05]} 48. Rg8 {[%emt 0:02:00]} Rb7 {[%emt 0:02:30]} 49. Re8 {[%emt 0:04:04]} Qf1 {[%emt 0:02:55]} 50. Ra8+ {[%emt 0:07:21]} Kxa8 {[%emt 0:00:30]} 51. Qe8+ {[%emt 0:00:30]} Ka7 {[%emt 0:00:00]} 52. Qa4+ {[%emt 0:00:00]} Kb8 {[%emt 0:00:26]} 53. Qe8+ {[%emt 0:00:00]} Ka7 {[%emt 0:02:51]} 54. Qa4+ {[%emt 0:00:03]} Kb8 {[%emt 0:00:30]} 55. Qe8+ {[%emt 0:00:00]} Ka7 {[%emt 0:01:15]} 1/2-1/2

[Event "Turkish Super League 2019"]
[Site "Konya"]
[Date "2019.07.25"]
[Round "9"]
[White "Annaberdiev, Meilis"]
[Black "Dimitrov, Radoslav"]
[Result "0-1"]
[ECO "B10"]
[WhiteElo "2515"]
[BlackElo "2530"]
[Annotator "ChessBase"]
[PlyCount "91"]
[EventDate "2019.07.17"]
[EventType "team-tourn"]
[EventCountry "TUR"]
[SourceTitle "playchess.com"]
[Source "ChessBase"]
[SourceQuality "1"]
[TimeControl "40/5400+30:1800+30"]

1. e4 c6 2. d3 d5 3. Nd2 g6 4. Ngf3 Bg7 5. g3 e5 6. Bg2 Ne7 7. O-O O-O 8. Re1 d4 9. Nc4 b5 10. Ncd2 h6 11. Nb3 Qd6 12. a4 Be6 13. axb5 Bxb3 14. b6 Nd7 15. b7 Rab8 16. cxb3 Rxb7 17. Nd2 Qe6 18. Ra5 {[%emt 0:29:00]} c5 {[%emt 0:23:00]} 19. f4 {[%emt 0:04:30]} Nc6 {[%emt 0:01:30]} 20. Ra3 {[%emt 0:00:30]} Nb4 {[%emt 0:03:30]} 21. Nc4 {[%emt 0:00:30]} Nb6 {[%emt 0:00:30]} 22. Rf1 {[%emt 0:06:30]} exf4 {[%emt 0:06:30]} 23. gxf4 {[%emt 0:00:30]} Qe7 {[%emt 0:00:30]} 24. Rf3 {[%emt 0:14:30]} f5 {[%emt 0:18:30]} 25. Rg3 {[%emt 0:02:30]} Nxc4 {[%emt 0:00:30]} 26. bxc4 {[%emt 0:00:30]} Rb6 {[%emt 0:00:30]} 27. Bd2 {[%emt 0:10:30]} Nxd3 {[%emt 0:08:30]} 28. Raxd3 {[%emt 0:02:30]} fxe4 {[%emt 0:00:30]} 29. Rb3 {[%emt 0:00:00]} Re6 {[%emt 0:03:30]} 30. Qg4 {[%emt 0:03:00]} Rd6 {[%emt 0:07:30]} 31. h4 {[%emt 0:13:12]} e3 {[%emt 0:10:30]} 32. Rb7 {[%emt 0:01:14]} Qe8 {[%emt 0:01:36]} 33. Be1 {[%emt 0:01:45]} d3 {[%emt 0:01:12]} 34. Bd5+ {[%emt 0:00:34]} Rxd5 {[%emt 0:02:02]} 35. cxd5 {[%emt 0:00:38]} d2 {[%emt 0:00:04]} 36. Qe2 {[%emt 0:06:46]} dxe1=R+ {[%emt 0:01:12]} 37. Qxe1 {[%emt 0:00:01]} e2 {[%emt 0:03:10]} 38. d6 {[%emt 0:00:28]} Rxf4 {[%emt 0:01:54]} 39. Re7 {[%emt 0:01:43]} Rf1+ {[%emt 0:03:48]} 40. Qxf1 {[%emt 0:00:00]} Bd4+ {[%emt 0:00:00]} 41. Kg2 {[%emt 0:06:09]} exf1=Q+ {[%emt 0:04:02]} 42. Kxf1 {[%emt 0:00:30]} Qf8+ {[%emt 0:01:30]} 43. Kg2 {[%emt 0:00:00]} Qf2+ {[%emt 0:00:30]} 44. Kh3 {[%emt 0:00:00]} Qf5+ {[%emt 0:00:30]} 45. Kh2 {[%emt 0:00:30]} Be5 {[%emt 0:02:30]} 46. b3 {[%emt 0:03:30]} 0-1

[Event "Turkish Super League 2019"]
[Site "Konya"]
[Date "2019.07.25"]
[Round "9"]
[White "Lobanov, Sergei"]
[Black "Aydin, Hakan Arda"]
[Result "1/2-1/2"]
[ECO "C54"]
[WhiteElo "2505"]
[BlackElo "1956"]
[Annotator "ChessBase"]
[PlyCount "117"]
[EventDate "2019.07.17"]
[EventType "team-tourn"]
[EventCountry "TUR"]
[SourceTitle "playchess.com"]
[Source "ChessBase"]
[SourceQuality "1"]
[TimeControl "40/5400+30:1800+30"]

1. e4 e5 2. Nf3 Nc6 3. Bc4 Bc5 4. c3 Nf6 5. d3 d6 6. Bb3 a6 7. O-O Ba7 8. h3 h6 9. Re1 O-O 10. Nbd2 Nh5 11. Nf1 Qf6 12. Be3 Nf4 13. d4 Ne7 14. Kh2 Neg6 15. Ng1 {[%emt 0:17:30]} Re8 {[%emt 0:34:30]} 16. d5 {[%emt 0:08:30]} Nf8 {[%emt 0:29:30]} 17. g3 {[%emt 0:01:30]} N4g6 {[%emt 0:00:00]} 18. Kg2 {[%emt 0:01:30]} Ne7 {[%emt 0:03:00]} 19. Bxa7 {[%emt 0:03:30]} Rxa7 {[%emt 0:00:00]} 20. Ne3 {[%emt 0:00:30]} Qg6 {[%emt 0:02:00]} 21. Nf3 {[%emt 0:01:30]} f5 {[%emt 0:08:30]} 22. Nh4 {[%emt 0:00:30]} Qg5 {[%emt 0:00:00]} 23. exf5 {[%emt 0:00:30]} Nxf5 {[%emt 0:00:00]} 24. Nhxf5 {[%emt 0:21:30]} Bxf5 {[%emt 0:00:30]} 25. h4 {[%emt 0:00:30]} Qf6 {[%emt 0:02:30]} 26. Nxf5 {[%emt 0:00:00]} Qxf5 {[%emt 0:00:30]} 27. f4 {[%emt 0:00:00]} Raa8 {[%emt 0:01:30]} 28. Bc2 {[%emt 0:02:30]} Qf6 {[%emt 0:01:30]} 29. Qh5 {[%emt 0:00:30]} Qf7 {[%emt 0:03:10]} 30. Qxf7+ {[%emt 0:00:30]} Kxf7 {[%emt 0:00:30]} 31. fxe5 {[%emt 0:00:00]} Rxe5 {[%emt 0:00:17]} 32. Rxe5 {[%emt 0:00:00]} dxe5 {[%emt 0:00:00]} 33. Rf1+ {[%emt 0:07:30]} Ke7 {[%emt 0:01:36]} 34. Kf3 {[%emt 0:00:30]} Nd7 {[%emt 0:02:37]} 35. Ke4 {[%emt 0:00:30]} Re8 {[%emt 0:00:41]} 36. b4 {[%emt 0:09:30]} a5 {[%emt 0:01:51]} 37. Ba4 {[%emt 0:02:30]} axb4 {[%emt 0:05:01]} 38. Bxd7 {[%emt 0:00:30]} Kxd7 {[%emt 0:00:00]} 39. Rf7+ {[%emt 0:00:30]} Re7 {[%emt 0:03:19]} 40. Rxe7+ {[%emt 0:00:00]} Kxe7 {[%emt 0:00:00]} 41. cxb4 {[%emt 0:01:00]} Kd6 {[%emt 0:02:28]} 42. a4 {[%emt 0:00:00]} h5 {[%emt 0:01:30]} 43. a5 {[%emt 0:17:00]} c6 {[%emt 0:00:30]} 44. dxc6 {[%emt 0:00:30]} Kxc6 {[%emt 0:00:30]} 45. Kxe5 {[%emt 0:05:30]} Kb5 {[%emt 0:00:00]} 46. g4 {[%emt 0:00:30]} hxg4 {[%emt 0:15:00]} 47. Kf4 {[%emt 0:00:00]} Kxb4 {[%emt 0:00:30]} 48. Kxg4 {[%emt 0:00:00]} Kxa5 {[%emt 0:00:30]} 49. Kg5 {[%emt 0:00:30]} b5 {[%emt 0:00:00]} 50. Kg6 {[%emt 0:00:30]} b4 {[%emt 0:00:00]} 51. Kxg7 {[%emt 0:00:30]} b3 {[%emt 0:00:30]} 52. h5 {[%emt 0:00:00]} b2 {[%emt 0:00:00]} 53. h6 {[%emt 0:00:00]} b1=Q {[%emt 0:00:00]} 54. h7 {[%emt 0:00:00]} Qg1+ {[%emt 0:00:30]} 55. Kf7 {[%emt 0:00:00]} Qf2+ {[%emt 0:00:30]} 56. Kg7 {[%emt 0:00:00]} Qg3+ {[%emt 0:00:30]} 57. Kf7 {[%emt 0:00:00]} Qf4+ {[%emt 0:00:30]} 58. Kg7 {[%emt 0:00:00]} Qg5+ {[%emt 0:00:00]} 59. Kf7 {[%emt 0:00:00]} 1/2-1/2

[Event "Turkish Super League 2019"]
[Site "Konya"]
[Date "2019.07.25"]
[Round "9"]
[White "Esen, Baris"]
[Black "Gadimbayli, Abdulla"]
[Result "0-1"]
[ECO "A14"]
[WhiteElo "2478"]
[BlackElo "2414"]
[Annotator "RC"]
[PlyCount "68"]
[EventDate "2019.07.17"]
[EventType "team-tourn"]
[EventCountry "TUR"]
[SourceTitle "playchess.com"]
[Source "ChessBase"]
[SourceQuality "1"]
[TimeControl "40/5400+30:1800+30"]

1. Nf3 Nf6 2. c4 b6 3. g3 Bb7 4. Bg2 e6 5. O-O Be7 6. b3 O-O 7. Bb2 c5 8. e3 d5 9. Qe2 Nc6 10. d4 cxd4 11. exd4 Rc8 12. Nbd2 Re8 13. Rfd1 {[%emt 0:15:30]} Bb4 {[%emt 0:35:30]} 14. Nf1 {[%emt 0:01:30]} Ba6 {[%emt 0:17:30]} 15. Rac1 {[%emt 0:11:30]} Na5 {[%emt 0:08:30]} 16. Ne5 {[%emt 0:08:30]} Qe7 {[%emt 0:00:30]} 17. Ne3 {[%emt 0:04:30]} Red8 {[%emt 0:10:30]} 18. Rc2 {[%emt 0:08:30]} h6 {[%emt 0:08:36]} 19. Bf3 {[%emt 0:15:30]} Rc7 {[%emt 0:05:34]} 20. Qf1 {[%emt 0:03:30]} Rdc8 {[%emt 0:03:53]} 21. Be2 {[%emt 0:01:30]} Bb7 {[%emt 0:04:03]} 22. f3 {[%emt 0:02:30]} dxc4 {[%emt 0:04:23]} 23. bxc4 {[%emt 0:00:30]} Qe8 {[%emt 0:00:08]} 24. Qh3 {[%emt 0:05:30]} Nd5 {[%emt 0:01:52]} 25. Nf1 {[%emt 0:07:21]} f6 {[%emt 0:00:36]} 26. Ng4 {[%emt 0:00:39]} Nxc4 {[%emt 0:00:30]} 27. Bd3 {[%emt 0:03:47]} Nxb2 {[%emt 0:01:11]} 28. Rxb2 {[%emt 0:00:06]} f5 {[%emt 0:00:02]} 29. Nf2 {[%emt 0:00:35]} Bc3 {[%emt 0:00:43]} 30. Re2 {[%emt 0:00:04]} Qg6 {[%emt 0:00:25]} 31. Qh4 {[%emt 0:00:33]} Bb4 {[%emt 0:00:02]} 32. g4 {[%emt 0:04:39]} Nc3 {[%emt 0:00:49]} 33. Ng3 {[%emt 0:00:40]} Nxd1 {[%emt 0:00:33]} 34. Nh3 {[%emt 0:01:33]} Be7 {[%emt 0:00:34]} 0-1

[Event "Turkish Super League 2019"]
[Site "Konya"]
[Date "2019.07.25"]
[Round "9"]
[White "Firat, Burak"]
[Black "Keler, Faruk"]
[Result "1-0"]
[ECO "C43"]
[WhiteElo "2463"]
[BlackElo "2263"]
[Annotator "ChessBase"]
[PlyCount "91"]
[EventDate "2019.07.17"]
[EventType "team-tourn"]
[EventCountry "TUR"]
[SourceTitle "playchess.com"]
[Source "ChessBase"]
[SourceQuality "1"]
[TimeControl "40/5400+30:1800+30"]

1. e4 e5 2. Nf3 Nf6 3. d4 Nxe4 4. Bd3 d5 5. Nxe5 Nd7 6. Nxd7 Bxd7 7. O-O Bd6 8. Nc3 Nxc3 9. bxc3 O-O 10. Qh5 f5 11. Re1 c6 12. Bg5 Qc7 13. Re3 g6 14. Qh6 Rae8 15. Rae1 Rxe3 16. Rxe3 Re8 17. c4 Rxe3 18. Bxe3 Be6 19. c5 Bf8 20. Qh4 Be7 21. Qh6 Bf8 22. Qh4 Be7 23. Bg5 Bf8 24. Bf4 Qe7 25. Bg5 Qc7 26. Bf4 Qe7 27. Qg3 b6 28. Bd6 Qf6 29. Bxf8 f4 30. Be7 Qxe7 31. Qxf4 bxc5 32. Qb8+ Kg7 33. Qe5+ Kf7 34. dxc5 Qxc5 35. Qh8 Bf5 36. Qxh7+ Kf6 37. Qh8+ Ke6 38. Qe8+ Kf6 39. Qd8+ Ke6 40. Qg8+ Kf6 41. Qd8+ Ke6 42. Qe8+ Kf6 43. Bxf5 Kxf5 44. Qf7+ Kg5 45. g3 Qd4 46. Qe7+ 1-0

[Event "Turkish Super League 2019"]
[Site "Konya"]
[Date "2019.07.25"]
[Round "9"]
[White "Daulyte-Cornette, Deimante"]
[Black "Savina, Anastasia"]
[Result "1-0"]
[ECO "C48"]
[WhiteElo "2444"]
[BlackElo "2344"]
[Annotator "NA"]
[PlyCount "65"]
[EventDate "2019.07.17"]
[EventType "team-tourn"]
[EventCountry "TUR"]
[SourceTitle "playchess.com"]
[Source "ChessBase"]
[SourceQuality "1"]
[TimeControl "40/5400+30:1800+30"]

1. e4 e5 2. Nf3 Nc6 3. Nc3 Nf6 4. Bb5 Nd4 5. Bc4 c6 6. Nxe5 d5 7. exd5 Bd6 8. Nf3 {[%emt 0:22:00]} Nxf3+ {[%emt 0:29:00]} 9. Qxf3 {[%emt 0:00:30]} O-O {[%emt 0:01:30]} 10. h3 {[%emt 0:02:30]} Re8+ {[%emt 0:14:30]} 11. Be2 {[%emt 0:01:30]} cxd5 {[%emt 0:05:30]} 12. d4 {[%emt 0:05:30]} Ne4 {[%emt 0:18:30]} 13. Nxe4 {[%emt 0:09:30]} dxe4 {[%emt 0:01:30]} 14. Qb3 {[%emt 0:00:30]} Be6 {[%emt 0:02:30]} 15. Bc4 {[%emt 0:02:30]} Bxc4 {[%emt 0:15:00]} 16. Qxc4 {[%emt 0:00:30]} Rc8 {[%emt 0:00:04]} 17. Qb3 {[%emt 0:00:30]} b5 {[%emt 0:03:52]} 18. c3 {[%emt 0:13:30]} b4 {[%emt 0:02:40]} 19. c4 {[%emt 0:05:30]} Bb8 {[%emt 0:02:48]} 20. Be3 {[%emt 0:03:30]} f5 {[%emt 0:00:48]} 21. g3 {[%emt 0:00:30]} a5 {[%emt 0:00:00]} 22. c5+ {[%emt 0:03:30]} Kh8 {[%emt 0:00:00]} 23. O-O-O {[%emt 0:01:30]} Qd7 {[%emt 0:00:38]} 24. Kb1 {[%emt 0:03:30]} Red8 {[%emt 0:01:09]} 25. d5 {[%emt 0:01:30]} Be5 {[%emt 0:00:52]} 26. d6 {[%emt 0:09:15]} Bf6 {[%emt 0:01:28]} 27. Qd5 {[%emt 0:01:07]} a4 {[%emt 0:00:35]} 28. Bd4 {[%emt 0:01:51]} Bxd4 {[%emt 0:00:34]} 29. Rxd4 {[%emt 0:00:40]} b3 {[%emt 0:00:30]} 30. a3 {[%emt 0:01:00]} Qb5 {[%emt 0:00:28]} 31. Rc1 {[%emt 0:01:12]} Qe2 {[%emt 0:00:31]} 32. d7 {[%emt 0:05:25]} Rc7 {[%emt 0:00:51]} 33. Qe5 {[%emt 0:00:22]} 1-0

[Event "Turkish Super League 2019"]
[Site "Konya"]
[Date "2019.07.25"]
[Round "9"]
[White "Mammadzada, Gunay"]
[Black "Buksa, Nataliya"]
[Result "0-1"]
[ECO "B33"]
[WhiteElo "2427"]
[BlackElo "2379"]
[Annotator "ChessBase"]
[PlyCount "80"]
[EventDate "2019.07.17"]
[EventType "team-tourn"]
[EventCountry "TUR"]
[SourceTitle "playchess.com"]
[Source "ChessBase"]
[SourceQuality "1"]
[TimeControl "40/5400+30:1800+30"]

1. e4 c5 2. Nf3 Nc6 3. d4 cxd4 4. Nxd4 Nf6 5. Nc3 e5 6. Ndb5 d6 7. Bg5 a6 8. Na3 b5 9. Nd5 Be7 10. Bxf6 Bxf6 11. c3 Rb8 12. Nc2 Bg5 13. g3 O-O 14. h4 Bh6 15. Bg2 a5 16. a3 {[%emt 0:23:00]} Be6 {[%emt 0:37:00]} 17. O-O {[%emt 0:03:30]} g6 {[%emt 0:03:30]} 18. Qd3 {[%emt 0:24:30]} f5 {[%emt 0:07:30]} 19. b4 {[%emt 0:08:30]} Qd7 {[%emt 0:06:30]} 20. Rad1 {[%emt 0:06:30]} f4 {[%emt 0:03:30]} 21. Ne1 {[%emt 0:01:30]} fxg3 {[%emt 0:04:30]} 22. fxg3 {[%emt 0:01:30]} Kh8 {[%emt 0:07:30]} 23. Nf3 {[%emt 0:07:30]} Bg4 {[%emt 0:03:30]} 24. Kh2 {[%emt 0:01:30]} Rf7 {[%emt 0:01:30]} 25. Rde1 {[%emt 0:04:52]} Qd8 {[%emt 0:08:49]} 26. Rb1 {[%emt 0:08:02]} axb4 {[%emt 0:08:44]} 27. axb4 {[%emt 0:00:17]} Ne7 {[%emt 0:00:09]} 28. Rbd1 {[%emt 0:06:38]} Ng8 {[%emt 0:05:00]} 29. Ra1 {[%emt 0:00:47]} Qd7 {[%emt 0:00:47]} 30. Ng5 {[%emt 0:02:04]} Rxf1 {[%emt 0:00:44]} 31. Bxf1 {[%emt 0:02:54]} Bxg5 {[%emt 0:04:48]} 32. hxg5 {[%emt 0:00:30]} Be6 {[%emt 0:00:00]} 33. Ra5 {[%emt 0:00:26]} Qd8 {[%emt 0:00:31]} 34. Qd2 {[%emt 0:01:19]} Bxd5 {[%emt 0:00:40]} 35. exd5 {[%emt 0:00:33]} Qd7 {[%emt 0:00:03]} 36. Bh3 {[%emt 0:00:40]} Qf7 {[%emt 0:00:36]} 37. Be6 {[%emt 0:00:43]} Qf3 {[%emt 0:00:03]} 38. Ra6 {[%emt 0:00:23]} Rf8 {[%emt 0:00:31]} 39. Rxd6 {[%emt 0:00:30]} Qf1 {[%emt 0:00:00]} 40. Bh3 {[%emt 0:01:08]} Rf2+ {[%emt 0:00:00]} 0-1

[Event "Turkish Super League 2019"]
[Site "Konya"]
[Date "2019.07.25"]
[Round "9"]
[White "Kerigan, Demre"]
[Black "Gulbas, Cemil"]
[Result "0-1"]
[ECO "B12"]
[WhiteElo "2398"]
[BlackElo "2380"]
[Annotator "NA"]
[PlyCount "62"]
[EventDate "2019.07.17"]
[EventType "team-tourn"]
[EventCountry "TUR"]
[SourceTitle "playchess.com"]
[Source "ChessBase"]
[SourceQuality "1"]
[TimeControl "40/5400+30:1800+30"]

1. e4 c6 2. d4 d5 3. e5 Bf5 4. Nf3 e6 5. Be2 c5 6. dxc5 Bxc5 7. Nbd2 Ne7 8. Nb3 Bb6 9. Nfd4 {[%emt 0:25:30]} Nbc6 {[%emt 0:25:30]} 10. Bf4 {[%emt 0:18:30]} O-O {[%emt 0:11:30]} 11. Nxf5 {[%emt 0:09:30]} Nxf5 {[%emt 0:01:30]} 12. Bd3 {[%emt 0:02:30]} Bc7 {[%emt 0:02:30]} 13. Qe2 {[%emt 0:05:30]} Nfe7 {[%emt 0:18:30]} 14. Bg3 {[%emt 0:04:30]} Nb4 {[%emt 0:14:30]} 15. O-O {[%emt 0:04:30]} Nxd3 {[%emt 0:00:30]} 16. Qxd3 {[%emt 0:00:30]} Nf5 {[%emt 0:01:30]} 17. Rfe1 {[%emt 0:04:30]} Bb6 {[%emt 0:02:50]} 18. a4 {[%emt 0:07:32]} a6 {[%emt 0:00:50]} 19. a5 {[%emt 0:00:21]} Ba7 {[%emt 0:00:10]} 20. Ra4 {[%emt 0:01:53]} Rc8 {[%emt 0:01:14]} 21. Rb4 {[%emt 0:03:11]} Rc7 {[%emt 0:04:14]} 22. c3 {[%emt 0:02:48]} Qe7 {[%emt 0:00:59]} 23. Rf4 {[%emt 0:04:24]} Rc6 {[%emt 0:08:15]} 24. Nd4 {[%emt 0:01:44]} Bxd4 {[%emt 0:00:36]} 25. Rxf5 {[%emt 0:03:04]} exf5 {[%emt 0:00:51]} 26. Qxd4 {[%emt 0:00:06]} Qc5 {[%emt 0:01:48]} 27. Qf4 {[%emt 0:01:33]} Qxa5 {[%emt 0:00:19]} 28. Qxf5 {[%emt 0:00:53]} d4 {[%emt 0:00:11]} 29. b4 {[%emt 0:00:32]} Qb5 {[%emt 0:00:06]} 30. cxd4 {[%emt 0:00:28]} Qxb4 {[%emt 0:00:17]} 31. Qe4 {[%emt 0:00:25]} Rd8 {[%emt 0:00:11]} 0-1